bitfinex/quotes_BTCUSD_20230901
["timestamp","ask_amount","ask_price","bid_price","bid_amount"]
[1693536878991,2.98090465,26103.0,26102.0,0.001532]
[1693536879190,3.29201416,26103.0,26102.0,0.001532]
[1693536879398,2.98156465,26103.0,26102.0,0.001532]
[1693536879602,2.98426465,26103.0,26102.0,0.001532]
[1693536879815,2.98168465,26103.0,26102.0,0.001532]
[1693536880022,2.98174465,26103.0,26102.0,0.001532]
[1693536880198,2.98276465,26103.0,26102.0,0.001532]
[1693536880591,2.98288465,26103.0,26102.0,0.001532]
[1693536880955,2.98282465,26103.0,26102.0,0.001532]
[1693536881153,2.98288465,26103.0,26102.0,0.001532]
[1693536881368,2.98492465,26103.0,26102.0,0.001532]
[1693536881571,2.98270465,26103.0,26102.0,0.001532]
[1693536881770,2.98192465,26103.0,26102.0,0.001532]
[1693536881946,3.29219416,26103.0,26102.0,0.001532]
[1693536882155,3.30017416,26103.0,26102.0,0.001532]
[1693536882355,3.29687416,26103.0,26102.0,0.001532]
[1693536882554,3.29951416,26103.0,26102.0,0.001532]
[1693536882755,3.29519416,26103.0,26102.0,0.001532]
[1693536882954,3.29729416,26103.0,26102.0,0.001532]
[1693536883162,3.29591416,26103.0,26102.0,0.001532]
[1693536883369,3.29585416,26103.0,26102.0,0.001532]
[1693536883580,3.68354833,26103.0,26102.0,0.001532]
[1693536883781,3.68342833,26103.0,26102.0,0.001532]
[1693536883988,3.68336833,26103.0,26102.0,0.001532]
[1693536884184,3.68660833,26103.0,26102.0,0.001532]
[1693536884384,3.68462833,26103.0,26102.0,0.001532]
[1693536884589,3.68294833,26103.0,26102.0,0.001532]
[1693536884791,3.68636833,26103.0,26102.0,0.001532]
[1693536885090,3.29441416,26103.0,26102.0,0.001532]
[1693536885292,3.29483416,26103.0,26102.0,0.001532]
[1693536885624,3.29549416,26103.0,26102.0,0.001532]
[1693536885840,3.29405416,26103.0,26102.0,0.001532]
[1693536886032,3.29507416,26103.0,26102.0,0.001532]
[1693536886165,3.29369416,26103.0,26102.0,0.001532]
[1693536886367,3.29357416,26103.0,26102.0,0.001532]
[1693536886567,3.29387416,26103.0,26102.0,0.001532]
[1693536886775,3.29489416,26103.0,26102.0,0.001532]
[1693536886986,3.29543416,26103.0,26102.0,0.001532]
[1693536887206,3.29261416,26103.0,26102.0,0.001532]
[1693536887405,3.29345416,26103.0,26102.0,0.001532]
[1693536887606,3.29171416,26103.0,26102.0,0.001532]
[1693536888029,3.29237416,26103.0,26102.0,0.001532]
[1693536888348,3.29357416,26103.0,26102.0,0.001532]
[1693536888568,3.29201416,26103.0,26102.0,0.001532]
[1693536888803,3.29207416,26103.0,26102.0,0.001532]
[1693536889011,3.29099416,26103.0,26102.0,0.001532]
[1693536889388,3.55810829,26103.0,26102.0,0.001532]
[1693536889520,3.55822829,26103.0,26102.0,0.001532]
[1693536889723,3.55864829,26103.0,26102.0,0.001532]
[1693536889919,3.29147416,26103.0,26102.0,0.001532]
[1693536890123,3.29243416,26103.0,26102.0,0.001532]
[1693536890373,3.29231416,26103.0,26102.0,0.001532]
[1693536891046,3.29075416,26103.0,26102.0,0.001532]
[1693536891381,3.29345416,26103.0,26102.0,0.001532]
[1693536891582,3.29111416,26103.0,26102.0,0.001532]
[1693536891783,3.29231416,26103.0,26102.0,0.001532]
[1693536892015,3.29339416,26103.0,26102.0,0.001532]
[1693536892212,3.29639416,26103.0,26102.0,0.001532]
[1693536892511,3.29651416,26103.0,26102.0,0.001532]
[1693536892709,3.29729416,26103.0,26102.0,0.001532]
[1693536892915,3.29699416,26103.0,26102.0,0.001532]
[1693536893112,3.29681416,26103.0,26102.0,0.001532]
[1693536893340,3.29705416,26103.0,26102.0,0.001532]
[1693536893562,3.29717416,26103.0,26102.0,0.001532]
[1693536893764,3.29735416,26103.0,26102.0,0.001532]
[1693536893965,3.29729416,26103.0,26102.0,0.001532]
[1693536894281,3.29699416,26103.0,26102.0,0.001532]
[1693536894432,3.29573416,26103.0,26102.0,0.001532]
[1693536894646,3.29729416,26103.0,26102.0,0.001532]
[1693536894849,3.29693416,26103.0,26102.0,0.001532]
[1693536895052,3.30035416,26103.0,26102.0,0.001532]
[1693536895292,3.29681416,26103.0,26102.0,0.001532]
[1693536895496,3.29711416,26103.0,26102.0,0.001532]
[1693536895796,3.29699416,26103.0,26102.0,0.001532]
[1693536896155,3.29705416,26103.0,26102.0,0.001532]
[1693536896359,3.29711416,26103.0,26102.0,0.001532]
[1693536896540,3.29651416,26103.0,26102.0,0.001532]
[1693536896734,3.29669416,26103.0,26102.0,0.001532]
[1693536896938,3.29747416,26103.0,26102.0,0.001532]
[1693536897197,3.29741416,26103.0,26102.0,0.001532]
[1693536897339,3.29711416,26103.0,26102.0,0.001532]
[1693536897540,3.29675416,26103.0,26102.0,0.001532]
[1693536897741,3.29579416,26103.0,26102.0,0.001532]
[1693536898003,3.87032016,26103.0,26102.0,0.001532]
[1693536898166,3.87044016,26103.0,26102.0,0.001532]
[1693536898367,3.87122016,26103.0,26102.0,0.001532]
[1693536898761,3.87182016,26103.0,26102.0,0.001532]
[1693536898940,3.87560016,26103.0,26102.0,0.001532]
[1693536899308,3.87164016,26103.0,26102.0,0.001532]
[1693536899464,3.87170016,26103.0,26102.0,0.001532]
[1693536899673,3.87158016,26103.0,26102.0,0.001532]
[1693536900017,3.87290016,26103.0,26102.0,0.001532]
[1693536900217,3.87032016,26103.0,26102.0,0.001532]
[1693536900443,3.87098016,26103.0,26102.0,0.001532]
[1693536900649,3.87056016,26103.0,26102.0,0.001532]
[1693536900830,3.87116016,26103.0,26102.0,0.001532]
[1693536901031,3.87428016,26103.0,26102.0,0.001532]
[1693536901234,3.87062016,26103.0,26102.0,0.001532]
[1693536901434,3.87050016,26103.0,26102.0,0.001532]
[1693536901633,4.25783433,26103.0,26102.0,0.001532]
[1693536901813,4.27235433,26103.0,26102.0,0.001532]
[1693536901987,4.26707433,26103.0,26102.0,0.001532]
[1693536902205,4.26629433,26103.0,26102.0,0.001532]
[1693536902433,4.26515433,26103.0,26102.0,0.001532]
[1693536902773,4.26473433,26103.0,26102.0,0.001532]
[1693536902975,3.68984833,26103.0,26102.0,0.001532]
[1693536903209,3.68870833,26103.0,26102.0,0.001532]
[1693536903356,4.26425433,26103.0,26102.0,0.001532]
[1693536903559,4.26431433,26103.0,26102.0,0.001532]
[1693536903763,4.26401433,26103.0,26102.0,0.001532]
[1693536903973,4.26395433,26103.0,26102.0,0.001532]
[1693536904242,4.26401433,26103.0,26102.0,0.001532]
[1693536904445,4.26383433,26103.0,26102.0,0.001532]
[1693536904659,3.29873416,26103.0,26102.0,0.001532]
[1693536904864,3.29807416,26103.0,26102.0,0.001532]
[1693536905034,3.29783416,26103.0,26102.0,0.001532]
[1693536905180,3.29837416,26103.0,26102.0,0.001532]
[1693536905381,3.29831416,26103.0,26102.0,0.001532]
[1693536906029,3.29837416,26103.0,26102.0,0.001532]
[1693536906267,3.29831416,26103.0,26102.0,0.001532]
[1693536906673,3.87428016,26103.0,26102.0,0.001532]
[1693536906873,3.87302016,26103.0,26102.0,0.001532]
[1693536907097,3.87296016,26103.0,26102.0,0.001532]
[1693536907301,3.87398016,26103.0,26102.0,0.001532]
[1693536907498,3.87332016,26103.0,26102.0,0.001532]
[1693536907725,3.87308016,26103.0,26102.0,0.001532]
[1693536907945,3.87326016,26103.0,26102.0,0.001532]
[1693536908143,3.87446016,26103.0,26102.0,0.001532]
[1693536908368,3.87338016,26103.0,26102.0,0.001532]
[1693536908573,3.87308016,26103.0,26102.0,0.001532]
[1693536908777,3.87332016,26103.0,26102.0,0.001532]
[1693536908954,3.87314016,26103.0,26102.0,0.001532]
[1693536909129,3.87218016,26103.0,26102.0,0.001532]
[1693536909472,3.87212016,26103.0,26102.0,0.001532]
[1693536909673,3.87140016,26103.0,26102.0,0.001532]
[1693536909900,3.87116016,26103.0,26102.0,0.001532]
[1693536910223,4.25843433,26103.0,26102.0,0.001532]
[1693536910594,3.87110016,26103.0,26102.0,0.001532]
[1693536910727,3.87236016,26103.0,26102.0,0.001532]
[1693536910943,3.87248016,26103.0,26102.0,0.001532]
[1693536911142,3.87194016,26103.0,26102.0,0.001532]
[1693536911346,3.87188016,26103.0,26102.0,0.001532]
[1693536911616,3.87182016,26103.0,26102.0,0.001532]
[1693536911771,3.87194016,26103.0,26102.0,0.001532]
[1693536911979,3.87188016,26103.0,26102.0,0.001532]
[1693536912519,3.87500016,26103.0,26102.0,0.001532]
[1693536912720,3.87350016,26103.0,26102.0,0.001532]
[1693536912901,3.87362016,26103.0,26102.0,0.001532]
[1693536913099,3.87392016,26103.0,26102.0,0.001532]
[1693536913311,3.87404016,26103.0,26102.0,0.001532]
[1693536913500,3.87368016,26103.0,26102.0,0.001532]
[1693536913714,3.87326016,26103.0,26102.0,0.001532]
[1693536913911,3.87398016,26103.0,26102.0,0.001532]
[1693536914116,3.87344016,26103.0,26102.0,0.001532]
[1693536914317,3.87356016,26103.0,26102.0,0.001532]
[1693536914540,3.87386016,26103.0,26102.0,0.001532]
[1693536914777,3.87518016,26103.0,26102.0,0.001532]
[1693536914958,3.87452016,26103.0,26102.0,0.001532]
[1693536915185,4.14528392,26103.0,26102.0,0.001532]
[1693536915317,4.14636392,26103.0,26102.0,0.001532]
[1693536915516,4.14702392,26103.0,26102.0,0.001532]
[1693536915930,4.14624392,26103.0,26102.0,0.001532]
[1693536916133,4.14582392,26103.0,26102.0,0.001532]
[1693536916334,4.14564392,26103.0,26102.0,0.001532]
[1693536916542,4.14574058,26103.0,26102.0,0.001532]
[1693536916743,3.87713682,26103.0,26102.0,0.001532]
[1693536916944,3.87839682,26103.0,26102.0,0.001532]
[1693536917144,3.87797682,26103.0,26102.0,0.001532]
[1693536917367,3.87701682,26103.0,26102.0,0.001532]
[1693536917575,3.87833682,26103.0,26102.0,0.001532]
[1693536917781,3.87845682,26103.0,26102.0,0.001532]
[1693536917983,3.87707682,26103.0,26102.0,0.001532]
[1693536918182,3.87743682,26103.0,26102.0,0.001532]
[1693536918427,3.87851682,26103.0,26102.0,0.001532]
[1693536918640,3.87719682,26103.0,26102.0,0.001532]
[1693536918981,3.87725682,26103.0,26102.0,0.001532]
[1693536919099,3.87743682,26103.0,26102.0,0.001532]
[1693536919528,3.87767682,26103.0,26102.0,0.001532]
[1693536919694,3.96081083,26103.0,26102.0,0.001532]
[1693536920103,3.96087083,26103.0,26102.0,0.001532]
[1693536920352,3.96093083,26103.0,26102.0,0.001532]
[1693536920553,3.96111083,26103.0,26102.0,0.001532]
[1693536920890,3.96117083,26103.0,26102.0,0.001532]
[1693536921154,3.96243083,26103.0,26102.0,0.001532]
[1693536921358,3.96165083,26103.0,26102.0,0.001532]
[1693536921693,3.96171083,26103.0,26102.0,0.001532]
[1693536921890,3.96177083,26103.0,26102.0,0.001532]
[1693536922105,3.96255083,26103.0,26102.0,0.001532]
[1693536922315,3.96411083,26103.0,26102.0,0.001532]
[1693536922512,3.96333083,26103.0,26102.0,0.001532]
[1693536922720,3.96267083,26103.0,26102.0,0.001532]
[1693536922916,3.96273083,26103.0,26102.0,0.001532]
[1693536923114,3.96279083,26103.0,26102.0,0.001532]
[1693536923321,3.96285083,26103.0,26102.0,0.001532]
[1693536923658,3.96351083,26103.0,26102.0,0.001532]
[1693536924011,3.88175682,26103.0,26102.0,0.001532]
[1693536924215,3.88049682,26103.0,26102.0,0.001532]
[1693536924414,3.88019682,26103.0,26102.0,0.001532]
[1693536924671,3.87671682,26103.0,26102.0,0.001532]
[1693536924873,3.87581682,26103.0,26102.0,0.001532]
[1693536925042,3.87503682,26103.0,26102.0,0.001532]
[1693536925241,3.87509682,26103.0,26102.0,0.001532]
[1693536925443,3.87503682,26103.0,26102.0,0.001532]
[1693536925622,3.87497682,26103.0,26102.0,0.001532]
[1693536925823,3.87413682,26103.0,26102.0,0.001532]
[1693536926243,3.87443682,26103.0,26102.0,0.001532]
[1693536926447,3.87383682,26103.0,26102.0,0.001532]
[1693536926610,3.29901082,26103.0,26102.0,0.001532]
[1693536926812,3.30003082,26103.0,26102.0,0.001532]
[1693536927124,3.29997082,26103.0,26102.0,0.001532]
[1693536927349,3.29937082,26103.0,26102.0,0.001532]
[1693536927667,3.30087082,26103.0,26102.0,0.001532]
[1693536927849,3.30057082,26103.0,26102.0,0.001532]
[1693536928193,3.30081082,26103.0,26102.0,0.001532]
[1693536928532,3.29955082,26103.0,26102.0,0.001532]
[1693536928745,3.29967082,26103.0,26102.0,0.001532]
[1693536928924,3.29973082,26103.0,26102.0,0.001532]
[1693536929127,3.29979082,26103.0,26102.0,0.001532]
[1693536929323,3.30039082,26103.0,26102.0,0.001532]
[1693536929549,3.29991082,26103.0,26102.0,0.001532]
[1693536929660,3.30105082,26103.0,26102.0,0.001532]
[1693536929889,3.30099082,26103.0,26102.0,0.001532]
[1693536930297,3.30159082,26103.0,26102.0,0.001532]
[1693536930763,3.30027082,26103.0,26102.0,0.001532]
[1693536930962,3.30021082,26103.0,26102.0,0.001532]
[1693536931178,3.30033082,26103.0,26102.0,0.001532]
[1693536931382,3.30027082,26103.0,26102.0,0.001532]
[1693536931583,3.30081082,26103.0,26102.0,0.001532]
[1693536931727,3.30027082,26103.0,26102.0,0.001532]
[1693536931899,3.29973082,26103.0,26102.0,0.001532]
[1693536932101,2.99012131,26103.0,26102.0,0.001532]
[1693536932309,2.98964131,26103.0,26102.0,0.001532]
[1693536932527,2.98970131,26103.0,26102.0,0.001532]
[1693536932731,2.99174131,26103.0,26102.0,0.001532]
[1693536932998,2.99066131,26103.0,26102.0,0.001532]
[1693536933242,2.99120131,26103.0,26102.0,0.001532]
[1693536933647,2.99114131,26103.0,26102.0,0.001532]
[1693536933950,2.98952131,26103.0,26102.0,0.001532]
[1693536934254,2.98928131,26103.0,26102.0,0.001532]
[1693536934452,2.99036131,26103.0,26102.0,0.001532]
[1693536934927,2.99072131,26103.0,26102.0,0.001532]
[1693536935156,2.99030131,26103.0,26102.0,0.001532]
[1693536935344,2.99084131,26103.0,26102.0,0.001532]
[1693536935490,2.99072131,26103.0,26102.0,0.001532]
[1693536935695,3.56626731,26103.0,26102.0,0.001532]
[1693536935899,3.56578731,26103.0,26102.0,0.001532]
[1693536936513,3.56506731,26103.0,26102.0,0.001532]
[1693536936733,3.56518731,26103.0,26102.0,0.001532]
[1693536936938,3.56506731,26103.0,26102.0,0.001532]
[1693536937139,3.56554731,26103.0,26102.0,0.001532]
[1693536937354,3.56272731,26103.0,26102.0,0.001532]
[1693536937586,3.7030742,26103.0,26102.0,0.001532]
[1693536937717,3.7028342,26103.0,26102.0,0.001532]
[1693536937923,2.98088131,26103.0,26102.0,0.001532]
[1693536938147,2.98106131,26103.0,26102.0,0.001532]
[1693536938342,2.98082131,26103.0,26102.0,0.001532]
[1693536938549,2.98250131,26103.0,26102.0,0.001532]
[1693536938763,2.98310131,26103.0,26102.0,0.001532]
[1693536938965,3.21907107,26103.0,26102.0,0.001532]
[1693536939142,3.21859107,26103.0,26102.0,0.001532]
[1693536939358,3.21799107,26103.0,26102.0,0.001532]
[1693536939572,3.21817107,26103.0,26102.0,0.001532]
[1693536939726,3.21751107,26103.0,26102.0,0.001532]
[1693536939960,3.21955107,26103.0,26102.0,0.001532]
[1693536940179,3.22507107,26103.0,26102.0,0.001532]
[1693536940382,3.22495107,26103.0,26102.0,0.001532]
[1693536940579,3.53508344,26103.0,26102.0,0.001532]
[1693536940776,3.53454344,26103.0,26102.0,0.001532]
[1693536941042,3.53490344,26103.0,26102.0,0.001532]
[1693536941257,3.29617368,26103.0,26102.0,0.001532]
[1693536941457,3.29659368,26103.0,26102.0,0.001532]
[1693536941654,3.29665368,26103.0,26102.0,0.001532]
[1693536941855,3.29599368,26103.0,26102.0,0.001532]
[1693536942185,3.29911368,26103.0,26102.0,0.001532]
[1693536942389,3.29869368,26103.0,26102.0,0.001532]
[1693536942563,3.29959368,26103.0,26102.0,0.001532]
[1693536942763,3.29965368,26103.0,26102.0,0.001532]
[1693536943095,3.63235271,26103.0,26102.0,0.001532]
[1693536943293,3.63175271,26103.0,26102.0,0.001532]
[1693536943495,3.63181271,26103.0,26102.0,0.001532]
[1693536943683,3.63163271,26103.0,26102.0,0.001532]
[1693536943925,3.63157271,26103.0,26102.0,0.001532]
[1693536944102,4.20915871,26103.0,26102.0,0.001532]
[1693536944230,3.87567968,26103.0,26102.0,0.001532]
[1693536944431,3.87543968,26103.0,26102.0,0.001532]
[1693536944634,3.87609968,26103.0,26102.0,0.001532]
[1693536944892,3.88173968,26103.0,26102.0,0.001532]
[1693536945123,3.88161968,26103.0,26102.0,0.001532]
[1693536945321,3.88251968,26103.0,26102.0,0.001532]
[1693536945526,4.26973385,26103.0,26102.0,0.001532]
[1693536945737,4.26997385,26103.0,26102.0,0.001532]
[1693536946031,4.26985385,26103.0,26102.0,0.001532]
[1693536946268,4.27147385,26103.0,26102.0,0.001532]
[1693536946461,4.27045385,26103.0,26102.0,0.001532]
[1693536946814,4.27081385,26103.0,26102.0,0.001532]
[1693536947014,4.27045385,26103.0,26102.0,0.001532]
[1693536947461,4.27046742,26103.0,26102.0,0.001532]
[1693536947658,4.27040742,26103.0,26102.0,0.001532]
[1693536947899,4.27016742,26103.0,26102.0,0.001532]
[1693536948049,4.27028742,26103.0,26102.0,0.001532]
[1693536948249,4.27232742,26103.0,26102.0,0.001532]
[1693536948478,4.27262742,26103.0,26102.0,0.001532]
[1693536948654,4.27250742,26103.0,26102.0,0.001532]
[1693536948857,4.27166742,26103.0,26102.0,0.001532]
[1693536949145,4.27130742,26103.0,26102.0,0.001532]
[1693536949342,4.27190742,26103.0,26102.0,0.001532]
[1693536949539,3.88895325,26103.0,26102.0,0.001532]
[1693536949739,3.60292731,26103.0,26102.0,0.001532]
[1693536949964,3.60472731,26103.0,26102.0,0.001532]
[1693536950210,3.60418731,26103.0,26102.0,0.001532]
[1693536950416,3.60478731,26103.0,26102.0,0.001532]
[1693536950555,3.99218148,26103.0,26102.0,0.001532]
[1693536950762,3.95180148,26103.0,26102.0,0.001532]
[1693536950964,3.95198148,26103.0,26102.0,0.001532]
[1693536951192,3.98918148,26103.0,26102.0,0.001532]
[1693536951348,3.95324148,26103.0,26102.0,0.001532]
[1693536951557,3.91682148,26103.0,26102.0,0.001532]
[1693536951764,3.95294148,26103.0,26102.0,0.001532]
[1693536951964,3.98990148,26103.0,26102.0,0.001532]
[1693536952266,3.98906148,26103.0,26102.0,0.001532]
[1693536952897,3.99044148,26103.0,26102.0,0.001532]
[1693536953098,3.99080148,26103.0,26102.0,0.001532]
[1693536953383,3.99038148,26103.0,26102.0,0.001532]
[1693536953586,3.99128148,26103.0,26102.0,0.001532]
[1693536953758,3.99134148,26103.0,26102.0,0.001532]
[1693536953919,3.99146148,26103.0,26102.0,0.001532]
[1693536954120,3.99416148,26103.0,26102.0,0.001532]
[1693536954616,3.99434148,26103.0,26102.0,0.001532]
[1693536954966,3.99452148,26103.0,26102.0,0.001532]
[1693536955181,3.99458148,26103.0,26102.0,0.001532]
[1693536955357,3.99356148,26103.0,26102.0,0.001532]
[1693536955563,3.99380148,26103.0,26102.0,0.001532]
[1693536955777,3.99386148,26103.0,26102.0,0.001532]
[1693536955977,3.99410148,26103.0,26102.0,0.001532]
[1693536956366,3.99524148,26103.0,26102.0,0.001532]
[1693536956573,5.20205753,26103.0,26102.0,0.001532]
[1693536956753,5.59387753,26103.0,26102.0,0.001532]
[1693536956965,5.37787753,26103.0,26102.0,0.001532]
[1693536957159,5.37715753,26103.0,26102.0,0.001532]
[1693536957361,5.38207753,26103.0,26102.0,0.001532]
[1693536957564,5.34499753,26103.0,26102.0,0.001532]
[1693536957698,5.38051753,26103.0,26102.0,0.001532]
[1693536957902,5.38075753,26103.0,26102.0,0.001532]
[1693536958101,5.34355753,26103.0,26102.0,0.001532]
[1693536958450,5.60935753,26103.0,26102.0,0.001532]
[1693536958621,5.63133753,26103.0,26102.0,0.001532]
[1693536958825,0.48409666,26100.0,26099.0,0.0005]
[1693536959052,4.80297716,26100.0,26099.0,0.0005]
[1693536959250,6.11519716,26100.0,26099.0,0.0005]
[1693536959419,6.11207716,26100.0,26099.0,0.0005]
[1693536959776,6.27801716,26100.0,26099.0,0.0005]
[1693536959912,6.31401716,26100.0,26099.0,0.0005]
[1693536960141,6.52245716,26100.0,26099.0,0.0005]
[1693536960348,6.52407716,26100.0,26099.0,0.0005]
[1693536960633,6.52263716,26100.0,26099.0,0.0005]
[1693536960839,6.52083716,26100.0,26099.0,0.0005]
[1693536961041,6.60689716,26100.0,26099.0,0.0005]
[1693536961241,6.57485716,26100.0,26099.0,0.0005]
[1693536961365,6.56945716,26100.0,26099.0,0.0005]
[1693536961556,6.60815716,26100.0,26099.0,0.0005]
[1693536961764,6.59069716,26100.0,26099.0,0.0005]
[1693536961963,6.42345716,26100.0,26099.0,0.0005]
[1693536962160,6.60451716,26100.0,26099.0,0.0005]
[1693536962366,6.60433716,26100.0,26099.0,0.0005]
[1693536962571,0.05979666,26093.0,26092.0,0.00020157]
[1693536962778,2.86454744,26093.0,26092.0,0.00020157]
[1693536962982,3.79193319,26093.0,26092.0,0.00020157]
[1693536963216,3.79685319,26093.0,26092.0,0.00020157]
[1693536963416,3.84680919,26093.0,26092.0,0.00020157]
[1693536963676,3.84926919,26093.0,26092.0,0.00020157]
[1693536963832,4.57920919,26093.0,26092.0,0.00020157]
[1693536964035,4.57440919,26093.0,26092.0,0.00020157]
[1693536964253,4.53594919,26093.0,26092.0,0.00020157]
[1693536964429,4.57140919,26093.0,26092.0,0.00020157]
[1693536964637,4.60872919,26093.0,26092.0,0.00020157]
[1693536964837,4.57272919,26093.0,26092.0,0.00020157]
[1693536965042,4.57056919,26093.0,26092.0,0.00020157]
[1693536965253,4.57542919,26093.0,26092.0,0.00020157]
[1693536965449,4.80422976,26093.0,26092.0,0.00020157]
[1693536965652,4.60968919,26093.0,26092.0,0.00020157]
[1693536965856,4.83819578,26093.0,26092.0,0.00020157]
[1693536966075,4.83807578,26093.0,26092.0,0.00020157]
[1693536966277,4.83009578,26093.0,26092.0,0.00020157]
[1693536966483,4.82817578,26093.0,26092.0,0.00020157]
[1693536966676,4.82709578,26093.0,26092.0,0.00020157]
[1693536966886,4.78148558,26093.0,26092.0,0.00020157]
[1693536967082,4.78142558,26093.0,26092.0,0.00020157]
[1693536967265,4.78136558,26093.0,26092.0,0.00020157]
[1693536967634,4.79108558,26093.0,26092.0,0.00020157]
[1693536967865,4.67047239,26093.0,26092.0,0.00020157]
[1693536968068,4.67059239,26093.0,26092.0,0.00020157]
[1693536968267,4.67047239,26093.0,26092.0,0.00020157]
[1693536968468,4.67089239,26093.0,26092.0,0.00020157]
[1693536968589,4.66939239,26093.0,26092.0,0.00020157]
[1693536968791,4.67245239,26093.0,26092.0,0.00020157]
[1693536969013,4.67209239,26093.0,26092.0,0.00020157]
[1693536969228,4.67323239,26093.0,26092.0,0.00020157]
[1693536969430,4.67317239,26093.0,26092.0,0.00020157]
[1693536969766,4.78020464,26093.0,26092.0,0.00020157]
[1693536969893,4.77822464,26093.0,26092.0,0.00020157]
[1693536970085,4.78758464,26093.0,26092.0,0.00020157]
[1693536970289,4.78662464,26093.0,26092.0,0.00020157]
[1693536970510,4.78278464,26093.0,26092.0,0.00020157]
[1693536970716,4.64517344,26093.0,26092.0,0.00020157]
[1693536970918,4.64523344,26093.0,26092.0,0.00020157]
[1693536971161,4.64583344,26093.0,26092.0,0.00020157]
[1693536971363,4.64565344,26093.0,26092.0,0.00020157]
[1693536971570,4.64433344,26093.0,26092.0,0.00020157]
[1693536971874,4.63443344,26093.0,26092.0,0.00020157]
[1693536972079,4.63671344,26093.0,26092.0,0.00020157]
[1693536972274,4.63659344,26093.0,26092.0,0.00020157]
[1693536972452,4.63647344,26093.0,26092.0,0.00020157]
[1693536972625,4.63839344,26093.0,26092.0,0.00020157]
[1693536972831,4.54642119,26093.0,26092.0,0.00020157]
[1693536973030,4.55566119,26093.0,26092.0,0.00020157]
[1693536973232,4.56334119,26093.0,26092.0,0.00020157]
[1693536973432,4.69558119,26093.0,26092.0,0.00020157]
[1693536973636,4.55752119,26093.0,26092.0,0.00020157]
[1693536973862,4.55278119,26093.0,26092.0,0.00020157]
[1693536974062,4.55632119,26093.0,26092.0,0.00020157]
[1693536974278,4.55608119,26093.0,26092.0,0.00020157]
[1693536974471,4.55734119,26093.0,26092.0,0.00020157]
[1693536974734,4.55716119,26093.0,26092.0,0.00020157]
[1693536974893,4.55626119,26093.0,26092.0,0.00020157]
[1693536975088,4.55686119,26093.0,26092.0,0.00020157]
[1693536975334,4.55668119,26093.0,26092.0,0.00020157]
[1693536975510,4.55632119,26093.0,26092.0,0.00020157]
[1693536975717,4.59006532,26093.0,26092.0,0.00020157]
[1693536975914,4.58844532,26093.0,26092.0,0.00020157]
[1693536976112,4.58808532,26093.0,26092.0,0.00020157]
[1693536976319,4.58946532,26093.0,26092.0,0.00020157]
[1693536976555,4.58766532,26093.0,26092.0,0.00020157]
[1693536976693,4.58754532,26093.0,26092.0,0.00020157]
[1693536976901,4.58814532,26093.0,26092.0,0.00020157]
[1693536977075,4.58856532,26093.0,26092.0,0.00020157]
[1693536977274,4.59126532,26093.0,26092.0,0.00020157]
[1693536977560,4.59114532,26093.0,26092.0,0.00020157]
[1693536977877,4.58910532,26093.0,26092.0,0.00020157]
[1693536978106,4.59024532,26093.0,26092.0,0.00020157]
[1693536978306,4.59006532,26093.0,26092.0,0.00020157]
[1693536978510,4.58334532,26093.0,26092.0,0.00020157]
[1693536978680,4.58406532,26093.0,26092.0,0.00020157]
[1693536978888,4.58598532,26093.0,26092.0,0.00020157]
[1693536979103,4.58580532,26093.0,26092.0,0.00020157]
[1693536979247,4.58820532,26093.0,26092.0,0.00020157]
[1693536979447,4.59156532,26093.0,26092.0,0.00020157]
[1693536979652,4.59126532,26093.0,26092.0,0.00020157]
[1693536979893,4.59474532,26093.0,26092.0,0.00020157]
[1693536980095,4.59306532,26093.0,26092.0,0.00020157]
[1693536980298,4.59216532,26093.0,26092.0,0.00020157]
[1693536980538,4.59204532,26093.0,26092.0,0.00020157]
[1693536980688,4.59228532,26093.0,26092.0,0.00020157]
[1693536980888,4.72368532,26093.0,26092.0,0.00020157]
[1693536981090,4.59240532,26093.0,26092.0,0.00020157]
[1693536981269,4.59600532,26093.0,26092.0,0.00020157]
[1693536981458,4.59582532,26093.0,26092.0,0.00020157]
[1693536981680,4.59216532,26093.0,26092.0,0.00020157]
[1693536981890,4.58580532,26093.0,26092.0,0.00020157]
[1693536982096,4.58562532,26093.0,26092.0,0.00020157]
[1693536982292,4.58598532,26093.0,26092.0,0.00020157]
[1693536982492,4.66225396,26093.0,26092.0,0.00020157]
[1693536982721,4.66147396,26093.0,26092.0,0.00020157]
[1693536982897,4.66135396,26093.0,26092.0,0.00020157]
[1693536983359,4.66141396,26093.0,26092.0,0.00020157]
[1693536983557,4.66195396,26093.0,26092.0,0.00020157]
[1693536983855,4.66147396,26093.0,26092.0,0.00020157]
[1693536984057,4.66129396,26093.0,26092.0,0.00020157]
[1693536984302,4.66141396,26093.0,26092.0,0.00020157]
[1693536984481,4.66303396,26093.0,26092.0,0.00020157]
[1693536984884,4.66297396,26093.0,26092.0,0.00020157]
[1693536985257,4.66315396,26093.0,26092.0,0.00020157]
[1693536985493,4.66195396,26093.0,26092.0,0.00020157]
[1693536985718,4.66093396,26093.0,26092.0,0.00020157]
[1693536985921,4.66159396,26093.0,26092.0,0.00020157]
[1693536986121,4.66111396,26093.0,26092.0,0.00020157]
[1693536986322,4.66075396,26093.0,26092.0,0.00020157]
[1693536986525,4.66261396,26093.0,26092.0,0.00020157]
[1693536986706,4.65607396,26093.0,26092.0,0.00020157]
[1693536986936,4.65715396,26093.0,26092.0,0.00020157]
[1693536987139,4.65301396,26093.0,26092.0,0.00020157]
[1693536987340,4.65421396,26093.0,26092.0,0.00020157]
[1693536987541,4.65427396,26093.0,26092.0,0.00020157]
[1693536987723,4.65433396,26093.0,26092.0,0.00020157]
[1693536987944,4.65409396,26093.0,26092.0,0.00020157]
[1693536988124,4.65439396,26093.0,26092.0,0.00020157]
[1693536988427,4.65391396,26093.0,26092.0,0.00020157]
[1693536988653,4.65217396,26093.0,26092.0,0.00020157]
[1693536988811,4.65265396,26093.0,26092.0,0.00020157]
[1693536989013,4.65283396,26093.0,26092.0,0.00020157]
[1693536989210,4.65247396,26093.0,26092.0,0.00020157]
[1693536989428,4.65283396,26093.0,26092.0,0.00020157]
[1693536989595,4.65379396,26093.0,26092.0,0.00020157]
[1693536989996,4.65397396,26093.0,26092.0,0.00020157]
[1693536990340,4.65433396,26093.0,26092.0,0.00020157]
[1693536990572,4.65655396,26093.0,26092.0,0.00020157]
[1693536990781,4.65679396,26093.0,26092.0,0.00020157]
[1693536991124,4.65685396,26093.0,26092.0,0.00020157]
[1693536991332,4.65703396,26093.0,26092.0,0.00020157]
[1693536991532,4.65301396,26093.0,26092.0,0.00020157]
[1693536991732,4.65313396,26093.0,26092.0,0.00020157]